[Event "Titled Tuesday Blitz December 20 Late 2022"]
[White "White, John S."]
[Black "Adewumi, Tanitoluwa"]
[WhiteFideId "2502348"]
[BlackFideId "30966396"]
[WhiteElo "1945"]
[BlackElo "2477"]
[Result "0-1"]
[Round "09"]
[TimeControl "180+1"]
[Date "2022.12.21"]
[WhiteClock "0:00:02"]
[BlackClock "0:00:26"]

1. e4 {[%clk 0:02:57]}  c5 {[%clk 0:02:21]} 2. Nf3 {[%clk 0:02:57]}  e6 {[%clk 0:02:19]} 3. d4 {[%clk 0:02:56]}  cxd4 {[%clk 0:02:20]} 4. Nxd4 {[%clk 0:02:56]}  Nc6 {[%clk 0:02:17]} 5. Nc3 {[%clk 0:02:55]}  Qc7 {[%clk 0:02:12]} 6. Be3 {[%clk 0:02:53]}  a6 {[%clk 0:02:09]} 7. Be2 {[%clk 0:02:44]}  Nf6 {[%clk 0:02:07]} 8. O-O {[%clk 0:02:43]}  Be7 {[%clk 0:02:07]} 9. f4 {[%clk 0:02:40]}  d6 {[%clk 0:01:54]} 10. Qd2 {[%clk 0:02:29]}  O-O {[%clk 0:01:52]} 11. Bf3 {[%clk 0:02:26]}  Nxd4 {[%clk 0:01:48]} 12. Bxd4 {[%clk 0:02:23]}  e5 {[%clk 0:01:45]} 13. Be3 {[%clk 0:02:17]}  b5 {[%clk 0:01:31]} 14. a3 {[%clk 0:02:14]}  Bb7 {[%clk 0:01:28]} 15. Rad1 {[%clk 0:02:10]}  Rac8 {[%clk 0:01:24]} 16. Rf2 {[%clk 0:01:53]}  Rfd8 {[%clk 0:01:14]} 17. f5 {[%clk 0:01:40]}  Qc4 {[%clk 0:00:51]} 18. Qd3 {[%clk 0:01:28]}  Qxd3 {[%clk 0:00:46]} 19. Rxd3 {[%clk 0:01:26]}  Rc4 {[%clk 0:00:46]} 20. Bb6 {[%clk 0:01:20]}  Rdc8 {[%clk 0:00:30]} 21. Re2 {[%clk 0:01:19]}  h6 {[%clk 0:00:14]} 22. g4 {[%clk 0:01:00]}  Nh7 {[%clk 0:00:13]} 23. Kg2 {[%clk 0:00:45]}  Ng5 {[%clk 0:00:12]} 24. Kg3 {[%clk 0:00:38]}  g6 {[%clk 0:00:12]} 25. f6 {[%clk 0:00:28]}  Bf8 {[%clk 0:00:06]} 26. h4 {[%clk 0:00:25]}  Ne6 {[%clk 0:00:06]} 27. Be3 {[%clk 0:00:17]}  Kh7 {[%clk 0:00:04]} 28. g5 {[%clk 0:00:12]}  h5 {[%clk 0:00:05]} 29. Kh3 {[%clk 0:00:04]}  R8c5 {[%clk 0:00:03]} 30. Kg3 {[%clk 0:00:04]}  Rc7 {[%clk 0:00:03]} 31. Kh3 {[%clk 0:00:04]}  Kg8 {[%clk 0:00:03]} 32. Kg3 {[%clk 0:00:04]}  Bc6 {[%clk 0:00:04]} 33. Kh3 {[%clk 0:00:04]}  a5 {[%clk 0:00:04]} 34. Kg3 {[%clk 0:00:05]}  b4 {[%clk 0:00:05]} 35. axb4 {[%clk 0:00:05]}  axb4 {[%clk 0:00:06]} 36. Na2 {[%clk 0:00:05]}  Bb5 {[%clk 0:00:05]} 37. Red2 {[%clk 0:00:03]}  Rxc2 {[%clk 0:00:05]} 38. Rxc2 {[%clk 0:00:03]}  Rxc2 {[%clk 0:00:06]} 39. Rb3 {[%clk 0:00:04]}  Bc4 {[%clk 0:00:06]} 40. Rxb4 {[%clk 0:00:03]}  Bxa2 {[%clk 0:00:06]} 41. Ra4 {[%clk 0:00:03]}  Bc4 {[%clk 0:00:06]} 42. Ra8 {[%clk 0:00:02]}  Be2 {[%clk 0:00:06]} 43. Bxe2 {[%clk 0:00:02]}  Rxe2 {[%clk 0:00:06]} 44. Kf3 {[%clk 0:00:03]}  Rxb2 {[%clk 0:00:06]} 45. Rc8 {[%clk 0:00:02]}  Rb3 {[%clk 0:00:06]} 46. Ke2 {[%clk 0:00:02]}  Nc5 {[%clk 0:00:06]} 47. Bxc5 {[%clk 0:00:02]}  dxc5 {[%clk 0:00:07]} 48. Rc6 {[%clk 0:00:02]}  Rb4 {[%clk 0:00:08]} 49. Kf3 {[%clk 0:00:02]}  Rd4 {[%clk 0:00:08]} 50. Ke3 {[%clk 0:00:02]}  c4 {[%clk 0:00:09]} 51. Rc8 {[%clk 0:00:01]}  Rd3+ {[%clk 0:00:09]} 52. Ke2 {[%clk 0:00:01]}  Rh3 {[%clk 0:00:10]} 53. Kf2 {[%clk 0:00:01]}  Rxh4 {[%clk 0:00:11]} 54. Kf3 {[%clk 0:00:01]}  Rg4 {[%clk 0:00:12]} 55. Ke3 {[%clk 0:00:02]}  Rxg5 {[%clk 0:00:13]} 56. Rc6 {[%clk 0:00:02]}  Rg4 {[%clk 0:00:14]} 57. Kf3 {[%clk 0:00:02]}  Rf4+ {[%clk 0:00:14]} 58. Ke3 {[%clk 0:00:02]}  g5 {[%clk 0:00:15]} 59. Rc8 {[%clk 0:00:02]}  g4 {[%clk 0:00:16]} 60. Ke2 {[%clk 0:00:02]}  h4 {[%clk 0:00:17]} 61. Ke3 {[%clk 0:00:02]}  h3 {[%clk 0:00:18]} 62. Rc6 {[%clk 0:00:03]}  Rxf6 {[%clk 0:00:19]} 63. Rc8 {[%clk 0:00:03]}  Rf4 {[%clk 0:00:20]} 64. Rc6 {[%clk 0:00:04]}  h2 {[%clk 0:00:21]} 65. Rxc4 {[%clk 0:00:04]}  h1=Q {[%clk 0:00:22]} 66. Ke2 {[%clk 0:00:04]}  Qf3+ {[%clk 0:00:23]} 67. Ke1 {[%clk 0:00:04]}  Rxe4+ {[%clk 0:00:23]} 68. Kd2 {[%clk 0:00:03]}  Bh6+ {[%clk 0:00:24]} 69. Kc2 {[%clk 0:00:02]}  Rxc4+ {[%clk 0:00:25]} 70. Kb2 {[%clk 0:00:02]}  Qc3+ {[%clk 0:00:26]} 0-1


[Site "https://www.chess.com"]

[Event "Titled Tuesday Blitz December 20 Late 2022"]
[White "Zhigalko, Sergei"]
[Black "Goryachkina, Aleksandra"]
[WhiteFideId "13502956"]
[BlackFideId "4147103"]
[WhiteElo "2662"]
[BlackElo "2484"]
[Result "1/2-1/2"]
[Round "09"]
[TimeControl "180+1"]
[Date "2022.12.20"]
[WhiteClock "0:00:03"]
[BlackClock "0:00:03"]

1. e4 {[%clk 0:03:00]}  c5 {[%clk 0:02:59]} 2. Nf3 {[%clk 0:03:01]}  e6 {[%clk 0:03:00]} 3. c3 {[%clk 0:03:01]}  Nf6 {[%clk 0:02:59]} 4. e5 {[%clk 0:03:02]}  Nd5 {[%clk 0:02:59]} 5. Bc4 {[%clk 0:03:02]}  d6 {[%clk 0:02:46]} 6. d4 {[%clk 0:03:02]}  cxd4 {[%clk 0:02:45]} 7. cxd4 {[%clk 0:03:03]}  Be7 {[%clk 0:02:45]} 8. O-O {[%clk 0:03:03]}  O-O {[%clk 0:02:45]} 9. Bd2 {[%clk 0:03:03]}  dxe5 {[%clk 0:02:30]} 10. dxe5 {[%clk 0:03:04]}  Nb6 {[%clk 0:02:28]} 11. Bb3 {[%clk 0:03:03]}  Bd7 {[%clk 0:02:17]} 12. Qe2 {[%clk 0:02:30]}  Bc6 {[%clk 0:02:08]} 13. Rd1 {[%clk 0:02:16]}  N8d7 {[%clk 0:02:07]} 14. Bf4 {[%clk 0:02:13]}  Nd5 {[%clk 0:01:43]} 15. Bxd5 {[%clk 0:02:12]}  Bxd5 {[%clk 0:01:42]} 16. Nc3 {[%clk 0:02:12]}  Nb6 {[%clk 0:00:48]} 17. Be3 {[%clk 0:01:54]}  Rc8 {[%clk 0:00:42]} 18. Bxb6 {[%clk 0:01:45]}  axb6 {[%clk 0:00:40]} 19. Nxd5 {[%clk 0:01:37]}  exd5 {[%clk 0:00:40]} 20. Rd3 {[%clk 0:01:17]}  Qd7 {[%clk 0:00:29]} 21. Rad1 {[%clk 0:01:17]}  Rfd8 {[%clk 0:00:25]} 22. a3 {[%clk 0:01:08]}  b5 {[%clk 0:00:19]} 23. Nd4 {[%clk 0:01:06]}  Bc5 {[%clk 0:00:13]} 24. g3 {[%clk 0:00:57]}  Re8 {[%clk 0:00:12]} 25. Nf3 {[%clk 0:00:56]}  Rcd8 {[%clk 0:00:09]} 26. Kg2 {[%clk 0:00:52]}  b4 {[%clk 0:00:09]} 27. Rxd5 {[%clk 0:00:41]}  Qxd5 {[%clk 0:00:08]} 28. Rxd5 {[%clk 0:00:41]}  Rxd5 {[%clk 0:00:08]} 29. Qb5 {[%clk 0:00:42]}  Red8 {[%clk 0:00:08]} 30. Qxb7 {[%clk 0:00:29]}  bxa3 {[%clk 0:00:08]} 31. bxa3 {[%clk 0:00:28]}  Bxa3 {[%clk 0:00:08]} 32. Ng5 {[%clk 0:00:29]}  R5d7 {[%clk 0:00:09]} 33. Qb3 {[%clk 0:00:28]}  h6 {[%clk 0:00:05]} 34. e6 {[%clk 0:00:24]}  hxg5 {[%clk 0:00:02]} 35. exd7 {[%clk 0:00:25]}  Be7 {[%clk 0:00:02]} 36. Qd5 {[%clk 0:00:25]}  Kf8 {[%clk 0:00:02]} 37. Kf3 {[%clk 0:00:21]}  Bf6 {[%clk 0:00:02]} 38. Qd6+ {[%clk 0:00:22]}  Be7 {[%clk 0:00:02]} 39. Qc7 {[%clk 0:00:21]}  Bf6 {[%clk 0:00:03]} 40. Qd6+ {[%clk 0:00:07]}  Be7 {[%clk 0:00:03]} 41. Qd5 {[%clk 0:00:06]}  Bf6 {[%clk 0:00:03]} 42. Qc5+ {[%clk 0:00:07]}  Be7 {[%clk 0:00:03]} 43. Qd5 {[%clk 0:00:03]} 1/2-1/2


[Site "https://www.chess.com"]

[Event "Titled Tuesday Blitz December 20 Late 2022"]
[White "Ansh M Shah"]
[Black "Nasir, Zehn"]
[WhiteFideId "25033379"]
[BlackFideId "2613239"]
[WhiteElo "2084"]
[BlackElo "1993"]
[Result "1-0"]
[Round "10"]
[TimeControl "180+1"]
[Date "2022.12.21"]
[WhiteClock "0:00:26"]
[BlackClock "0:00:02"]

1. d4 {[%clk 0:03:00]}  Nf6 {[%clk 0:03:00]} 2. c4 {[%clk 0:03:01]}  e6 {[%clk 0:03:00]} 3. g3 {[%clk 0:03:01]}  c5 {[%clk 0:03:01]} 4. Bg2 {[%clk 0:03:02]}  cxd4 {[%clk 0:03:00]} 5. Qxd4 {[%clk 0:02:59]}  Nc6 {[%clk 0:03:00]} 6. Qd1 {[%clk 0:03:00]}  d5 {[%clk 0:02:58]} 7. Nf3 {[%clk 0:02:59]}  dxc4 {[%clk 0:02:56]} 8. Qxd8+ {[%clk 0:03:00]}  Nxd8 {[%clk 0:02:56]} 9. Nbd2 {[%clk 0:03:01]}  c3 {[%clk 0:02:56]} 10. bxc3 {[%clk 0:03:01]}  Bd6 {[%clk 0:02:52]} 11. O-O {[%clk 0:03:00]}  O-O {[%clk 0:02:52]} 12. Bb2 {[%clk 0:02:59]}  Bd7 {[%clk 0:02:52]} 13. Nd4 {[%clk 0:02:59]}  Rc8 {[%clk 0:02:47]} 14. c4 {[%clk 0:02:57]}  Nc6 {[%clk 0:02:44]} 15. Nb5 {[%clk 0:02:53]}  Bb8 {[%clk 0:02:43]} 16. Rac1 {[%clk 0:02:50]}  a6 {[%clk 0:02:43]} 17. Nc3 {[%clk 0:02:50]}  Rfd8 {[%clk 0:02:34]} 18. Nb3 {[%clk 0:02:49]}  b6 {[%clk 0:02:31]} 19. Rfd1 {[%clk 0:02:48]}  Be8 {[%clk 0:02:26]} 20. Rxd8 {[%clk 0:02:47]}  Rxd8 {[%clk 0:02:26]} 21. Ne4 {[%clk 0:02:41]}  Nxe4 {[%clk 0:02:25]} 22. Bxe4 {[%clk 0:02:42]}  Nb4 {[%clk 0:02:15]} 23. a3 {[%clk 0:02:40]}  Nc6 {[%clk 0:02:05]} 24. c5 {[%clk 0:02:37]}  b5 {[%clk 0:01:57]} 25. e3 {[%clk 0:02:21]}  Bc7 {[%clk 0:01:53]} 26. Kf1 {[%clk 0:02:10]}  f5 {[%clk 0:01:52]} 27. Bb1 {[%clk 0:02:05]}  Ne5 {[%clk 0:01:39]} 28. Nd4 {[%clk 0:01:53]}  Kf7 {[%clk 0:01:09]} 29. Ba2 {[%clk 0:01:47]}  Bd7 {[%clk 0:01:04]} 30. Nxf5 {[%clk 0:01:29]}  Nd3 {[%clk 0:00:58]} 31. Rc2 {[%clk 0:01:25]}  Nxb2 {[%clk 0:00:55]} 32. Rxb2 {[%clk 0:01:26]}  Be5 {[%clk 0:00:52]} 33. Nd4 {[%clk 0:01:22]}  Rc8 {[%clk 0:00:50]} 34. Rc2 {[%clk 0:01:21]}  a5 {[%clk 0:00:45]} 35. c6 {[%clk 0:01:13]}  Bxc6 {[%clk 0:00:19]} 36. Bxe6+ {[%clk 0:01:03]}  Ke7 {[%clk 0:00:19]} 37. Bxc8 {[%clk 0:01:03]}  Be4 {[%clk 0:00:20]} 38. Rc5 {[%clk 0:01:01]}  Bf6 {[%clk 0:00:16]} 39. Rxb5 {[%clk 0:01:00]}  Bxd4 {[%clk 0:00:17]} 40. Rxa5 {[%clk 0:00:42]}  Bd3+ {[%clk 0:00:14]} 41. Kg1 {[%clk 0:00:40]}  Bf6 {[%clk 0:00:13]} 42. Ra7+ {[%clk 0:00:35]}  Ke8 {[%clk 0:00:10]} 43. Ba6 {[%clk 0:00:35]}  Be4 {[%clk 0:00:09]} 44. Bb5+ {[%clk 0:00:34]}  Kd8 {[%clk 0:00:08]} 45. a4 {[%clk 0:00:34]}  Kc8 {[%clk 0:00:09]} 46. a5 {[%clk 0:00:30]}  Kb8 {[%clk 0:00:09]} 47. Rf7 {[%clk 0:00:30]}  Bd5 {[%clk 0:00:09]} 48. Rd7 {[%clk 0:00:30]}  Be6 {[%clk 0:00:08]} 49. Rd6 {[%clk 0:00:28]}  Bc8 {[%clk 0:00:06]} 50. a6 {[%clk 0:00:28]}  Ka7 {[%clk 0:00:05]} 51. Rc6 {[%clk 0:00:27]}  Bf5 {[%clk 0:00:01]} 52. Rc7+ {[%clk 0:00:25]}  Kb6 {[%clk 0:00:02]} 53. Rb7+ {[%clk 0:00:26]} 1-0


[Site "https://www.chess.com"]

[Event "Titled Tuesday Blitz December 20 Late 2022"]
[White "Antonio, Jorge Carlos"]
[Black "Bryant, Todd"]
[WhiteFideId "113190"]
[BlackFideId "2031299"]
[WhiteElo "2247"]
[BlackElo "2332"]
[Result "0-1"]
[Round "10"]
[TimeControl "180+1"]
[Date "2022.12.21"]
[WhiteClock "0:00:17"]
[BlackClock "0:00:12"]

1. d4 {[%clk 0:03:00]}  Nf6 {[%clk 0:03:00]} 2. Nf3 {[%clk 0:03:00]}  g6 {[%clk 0:03:00]} 3. c4 {[%clk 0:03:00]}  Bg7 {[%clk 0:03:01]} 4. Nc3 {[%clk 0:03:00]}  O-O {[%clk 0:03:01]} 5. e4 {[%clk 0:03:00]}  d6 {[%clk 0:03:02]} 6. Be2 {[%clk 0:02:58]}  e5 {[%clk 0:03:02]} 7. O-O {[%clk 0:02:57]}  Nc6 {[%clk 0:03:02]} 8. d5 {[%clk 0:02:56]}  Ne7 {[%clk 0:03:03]} 9. Ne1 {[%clk 0:02:54]}  Nd7 {[%clk 0:03:03]} 10. Be3 {[%clk 0:02:54]}  f5 {[%clk 0:03:04]} 11. f3 {[%clk 0:02:54]}  f4 {[%clk 0:03:05]} 12. Bf2 {[%clk 0:02:54]}  g5 {[%clk 0:03:05]} 13. c5 {[%clk 0:02:54]}  Nxc5 {[%clk 0:02:51]} 14. Bxc5 {[%clk 0:02:53]}  dxc5 {[%clk 0:02:52]} 15. Rc1 {[%clk 0:02:51]}  Kh8 {[%clk 0:02:40]} 16. b4 {[%clk 0:02:47]}  cxb4 {[%clk 0:02:36]} 17. Nb5 {[%clk 0:02:46]}  c6 {[%clk 0:02:00]} 18. dxc6 {[%clk 0:02:38]}  Nxc6 {[%clk 0:01:50]} 19. Nd6 {[%clk 0:02:22]}  Qb6+ {[%clk 0:01:35]} 20. Kh1 {[%clk 0:02:20]}  Be6 {[%clk 0:01:36]} 21. Bc4 {[%clk 0:02:13]}  Nd4 {[%clk 0:01:19]} 22. Bxe6 {[%clk 0:02:00]}  Qxd6 {[%clk 0:01:14]} 23. Bg4 {[%clk 0:01:56]}  a5 {[%clk 0:01:05]} 24. Nc2 {[%clk 0:01:55]}  Rfd8 {[%clk 0:01:01]} 25. Nxd4 {[%clk 0:01:54]}  Qxd4 {[%clk 0:01:02]} 26. Qc2 {[%clk 0:01:52]}  Qd2 {[%clk 0:00:53]} 27. Qc7 {[%clk 0:01:48]}  Qxa2 {[%clk 0:00:49]} 28. h4 {[%clk 0:01:46]}  b3 {[%clk 0:00:41]} 29. Qxb7 {[%clk 0:01:43]}  b2 {[%clk 0:00:36]} 30. Rb1 {[%clk 0:01:40]}  Rab8 {[%clk 0:00:36]} 31. Qc7 {[%clk 0:01:32]}  gxh4 {[%clk 0:00:32]} 32. Kh2 {[%clk 0:01:27]}  a4 {[%clk 0:00:32]} 33. Rfd1 {[%clk 0:01:26]}  Rg8 {[%clk 0:00:23]} 34. Qd7 {[%clk 0:01:15]}  Qa3 {[%clk 0:00:15]} 35. Be6 {[%clk 0:01:14]}  Rgf8 {[%clk 0:00:14]} 36. Rd2 {[%clk 0:01:10]}  Qc3 {[%clk 0:00:14]} 37. Rdd1 {[%clk 0:00:46]}  a3 {[%clk 0:00:14]} 38. Bd5 {[%clk 0:00:43]}  Rbd8 {[%clk 0:00:13]} 39. Qa4 {[%clk 0:00:42]}  h6 {[%clk 0:00:11]} 40. Qc4 {[%clk 0:00:36]}  Qxc4 {[%clk 0:00:10]} 41. Bxc4 {[%clk 0:00:35]}  Rc8 {[%clk 0:00:10]} 42. Ba2 {[%clk 0:00:34]}  Rfd8 {[%clk 0:00:11]} 43. Kh3 {[%clk 0:00:33]}  Rxd1 {[%clk 0:00:09]} 44. Rxd1 {[%clk 0:00:32]}  Rc1 {[%clk 0:00:09]} 45. Rd8+ {[%clk 0:00:31]}  Kh7 {[%clk 0:00:10]} 46. Rb8 {[%clk 0:00:31]}  Ra1 {[%clk 0:00:10]} 47. Be6 {[%clk 0:00:28]}  Kg6 {[%clk 0:00:10]} 48. Bf5+ {[%clk 0:00:28]}  Kf6 {[%clk 0:00:11]} 49. Rb6+ {[%clk 0:00:27]}  Ke7 {[%clk 0:00:10]} 50. Rb7+ {[%clk 0:00:26]}  Kd6 {[%clk 0:00:11]} 51. Rxg7 {[%clk 0:00:20]}  b1=Q {[%clk 0:00:12]} 52. Kxh4 {[%clk 0:00:21]}  Qh1+ {[%clk 0:00:11]} 53. Kg4 {[%clk 0:00:20]}  Qxg2+ {[%clk 0:00:12]} 54. Kh5 {[%clk 0:00:19]}  Qxg7 {[%clk 0:00:12]} 55. Be6 {[%clk 0:00:17]}  Qg5# {[%clk 0:00:12]} 0-1


[Site "https://www.chess.com"]

[Event "Titled Tuesday Blitz December 20 Late 2022"]
[White "Ardila, Oscar Humberto"]
[Black "Sarkar, Justin"]
[WhiteFideId "4404742"]
[BlackFideId "2010011"]
[WhiteElo "1961"]
[BlackElo "2239"]
[Result "1-0"]
[Round "10"]
[TimeControl "180+1"]
[Date "2022.12.21"]
[WhiteClock "0:00:20"]
[BlackClock "0:00:01"]

1. d4 {[%clk 0:02:59]}  Nf6 {[%clk 0:02:34]} 2. c4 {[%clk 0:02:59]}  e6 {[%clk 0:02:26]} 3. Nc3 {[%clk 0:02:59]}  Bb4 {[%clk 0:02:26]} 4. Bd2 {[%clk 0:02:59]}  c5 {[%clk 0:02:20]} 5. dxc5 {[%clk 0:02:57]}  Na6 {[%clk 0:02:12]} 6. Nf3 {[%clk 0:02:56]}  O-O {[%clk 0:02:08]} 7. e3 {[%clk 0:02:57]}  Nxc5 {[%clk 0:02:05]} 8. Be2 {[%clk 0:02:57]}  b6 {[%clk 0:01:54]} 9. O-O {[%clk 0:02:57]}  Bb7 {[%clk 0:01:54]} 10. Rc1 {[%clk 0:02:57]}  Qe7 {[%clk 0:01:29]} 11. a3 {[%clk 0:02:56]}  Bxc3 {[%clk 0:01:29]} 12. Bxc3 {[%clk 0:02:57]}  a5 {[%clk 0:01:24]} 13. b4 {[%clk 0:02:56]}  Nce4 {[%clk 0:01:17]} 14. Be1 {[%clk 0:02:32]}  axb4 {[%clk 0:01:15]} 15. axb4 {[%clk 0:02:32]}  Ra2 {[%clk 0:01:10]} 16. Rc2 {[%clk 0:02:27]}  Ra3 {[%clk 0:01:04]} 17. Nd4 {[%clk 0:02:23]}  Rfa8 {[%clk 0:01:00]} 18. Rc1 {[%clk 0:02:22]}  d5 {[%clk 0:00:34]} 19. c5 {[%clk 0:02:01]}  bxc5 {[%clk 0:00:19]} 20. bxc5 {[%clk 0:02:01]}  Ba6 {[%clk 0:00:16]} 21. Bb4 {[%clk 0:01:53]}  Bxe2 {[%clk 0:00:12]} 22. Qxe2 {[%clk 0:01:53]}  R3a4 {[%clk 0:00:12]} 23. Rb1 {[%clk 0:01:50]}  e5 {[%clk 0:00:11]} 24. Nf5 {[%clk 0:01:35]}  Qd7 {[%clk 0:00:10]} 25. Ng3 {[%clk 0:01:35]}  Ra2 {[%clk 0:00:10]} 26. Qd3 {[%clk 0:01:27]}  g6 {[%clk 0:00:10]} 27. Qb3 {[%clk 0:01:19]}  Qc6 {[%clk 0:00:08]} 28. f3 {[%clk 0:01:15]}  Nxg3 {[%clk 0:00:07]} 29. hxg3 {[%clk 0:01:16]}  e4 {[%clk 0:00:07]} 30. Rb2 {[%clk 0:01:11]}  Rxb2 {[%clk 0:00:06]} 31. Qxb2 {[%clk 0:01:12]}  exf3 {[%clk 0:00:05]} 32. gxf3 {[%clk 0:00:59]}  Rb8 {[%clk 0:00:05]} 33. Qd4 {[%clk 0:00:57]}  Nh5 {[%clk 0:00:04]} 34. Bc3 {[%clk 0:00:56]}  f6 {[%clk 0:00:04]} 35. g4 {[%clk 0:00:47]}  Ng7 {[%clk 0:00:04]} 36. Ra1 {[%clk 0:00:45]}  Rc8 {[%clk 0:00:04]} 37. Ra7 {[%clk 0:00:40]}  Qxc5 {[%clk 0:00:03]} 38. Qxc5 {[%clk 0:00:39]}  Rxc5 {[%clk 0:00:03]} 39. Bxf6 {[%clk 0:00:39]}  Ne8 {[%clk 0:00:03]} 40. Bd4 {[%clk 0:00:39]}  Rc2 {[%clk 0:00:03]} 41. Re7 {[%clk 0:00:36]}  Nd6 {[%clk 0:00:03]} 42. Rg7+ {[%clk 0:00:34]}  Kf8 {[%clk 0:00:03]} 43. Rxh7 {[%clk 0:00:34]}  Nb5 {[%clk 0:00:03]} 44. Rd7 {[%clk 0:00:25]}  Nxd4 {[%clk 0:00:02]} 45. exd4 {[%clk 0:00:26]}  Ke8 {[%clk 0:00:02]} 46. Rxd5 {[%clk 0:00:26]}  Ke7 {[%clk 0:00:02]} 47. Re5+ {[%clk 0:00:26]}  Kd6 {[%clk 0:00:02]} 48. Kf1 {[%clk 0:00:24]}  Rd2 {[%clk 0:00:02]} 49. Re4 {[%clk 0:00:24]}  Kd5 {[%clk 0:00:02]} 50. g5 {[%clk 0:00:20]}  Rxd4 {[%clk 0:00:02]} 51. Rxd4+ {[%clk 0:00:19]}  Kxd4 {[%clk 0:00:02]} 52. Kf2 {[%clk 0:00:19]}  Ke5 {[%clk 0:00:02]} 53. Kg3 {[%clk 0:00:20]}  Kf5 {[%clk 0:00:02]} 54. f4 {[%clk 0:00:20]}  Ke6 {[%clk 0:00:02]} 55. Kf3 {[%clk 0:00:19]}  Kd5 {[%clk 0:00:02]} 56. Ke3 {[%clk 0:00:19]}  Kc5 {[%clk 0:00:01]} 57. Ke4 {[%clk 0:00:20]}  Kd6 {[%clk 0:00:01]} 58. Kd4 {[%clk 0:00:20]}  Ke6 {[%clk 0:00:01]} 59. Ke4 {[%clk 0:00:20]} 1-0


[Site "https://www.chess.com"]

[Event "Titled Tuesday Blitz December 20 Late 2022"]
[White "Arnold, Ken"]
[Black "Koutlas, Nikolaos"]
[WhiteFideId "2056836"]
[BlackFideId "25827138"]
[WhiteElo "2375"]
[BlackElo "2167"]
[Result "0-1"]
[Round "10"]
[TimeControl "180+1"]
[Date "2022.12.21"]
[WhiteClock "0:00:16"]
[BlackClock "0:00:29"]

1. e4 {[%clk 0:03:00]}  g6 {[%clk 0:02:55]} 2. Nf3 {[%clk 0:03:00]}  Bg7 {[%clk 0:02:55]} 3. Bc4 {[%clk 0:03:00]}  d6 {[%clk 0:02:52]} 4. h3 {[%clk 0:02:59]}  Nf6 {[%clk 0:02:52]} 5. d3 {[%clk 0:02:54]}  O-O {[%clk 0:02:52]} 6. O-O {[%clk 0:02:54]}  c6 {[%clk 0:02:52]} 7. a4 {[%clk 0:02:53]}  d5 {[%clk 0:02:52]} 8. exd5 {[%clk 0:02:52]}  cxd5 {[%clk 0:02:52]} 9. Bb3 {[%clk 0:02:52]}  Nc6 {[%clk 0:02:52]} 10. Re1 {[%clk 0:02:51]}  Bf5 {[%clk 0:02:35]} 11. Nc3 {[%clk 0:02:49]}  Qd7 {[%clk 0:02:33]} 12. Bg5 {[%clk 0:02:46]}  d4 {[%clk 0:02:28]} 13. Bxf6 {[%clk 0:02:43]}  Bxf6 {[%clk 0:02:26]} 14. Ne4 {[%clk 0:02:43]}  Bg7 {[%clk 0:02:24]} 15. Ng3 {[%clk 0:02:39]}  Rac8 {[%clk 0:02:19]} 16. Nxf5 {[%clk 0:02:38]}  Qxf5 {[%clk 0:02:19]} 17. a5 {[%clk 0:02:32]}  Nxa5 {[%clk 0:02:16]} 18. Rxe7 {[%clk 0:02:21]}  Nxb3 {[%clk 0:02:14]} 19. cxb3 {[%clk 0:02:21]}  Qb5 {[%clk 0:01:46]} 20. Rxa7 {[%clk 0:02:16]}  Bh6 {[%clk 0:01:46]} 21. Rexb7 {[%clk 0:02:13]}  Qf5 {[%clk 0:01:33]} 22. Rc7 {[%clk 0:02:06]}  Qf4 {[%clk 0:01:33]} 23. Qc2 {[%clk 0:02:02]}  Rce8 {[%clk 0:01:30]} 24. Re7 {[%clk 0:01:56]}  Rc8 {[%clk 0:01:25]} 25. Rac7 {[%clk 0:01:54]}  Ra8 {[%clk 0:01:24]} 26. Qd1 {[%clk 0:01:48]}  Rfc8 {[%clk 0:01:20]} 27. Rxc8+ {[%clk 0:01:43]}  Rxc8 {[%clk 0:01:18]} 28. g3 {[%clk 0:01:20]}  Qd6 {[%clk 0:01:12]} 29. Qe2 {[%clk 0:01:18]}  Be3 {[%clk 0:01:11]} 30. Rxe3 {[%clk 0:01:05]}  dxe3 {[%clk 0:01:10]} 31. Qxe3 {[%clk 0:01:05]}  Qd5 {[%clk 0:01:10]} 32. d4 {[%clk 0:01:04]}  Rb8 {[%clk 0:01:08]} 33. Kg2 {[%clk 0:00:59]}  Rxb3 {[%clk 0:01:06]} 34. Qe8+ {[%clk 0:00:57]}  Kg7 {[%clk 0:01:04]} 35. Qe5+ {[%clk 0:00:56]}  Qxe5 {[%clk 0:01:04]} 36. dxe5 {[%clk 0:00:57]}  Rxb2 {[%clk 0:01:04]} 37. g4 {[%clk 0:00:53]}  h6 {[%clk 0:01:03]} 38. Kg3 {[%clk 0:00:53]}  Kf8 {[%clk 0:01:02]} 39. Nh2 {[%clk 0:00:44]}  Rb3+ {[%clk 0:00:54]} 40. f3 {[%clk 0:00:41]}  Re3 {[%clk 0:00:53]} 41. Kf4 {[%clk 0:00:41]}  Re1 {[%clk 0:00:50]} 42. h4 {[%clk 0:00:38]}  g5+ {[%clk 0:00:46]} 43. hxg5 {[%clk 0:00:37]}  hxg5+ {[%clk 0:00:47]} 44. Kg3 {[%clk 0:00:31]}  Rxe5 {[%clk 0:00:47]} 45. Nf1 {[%clk 0:00:30]}  Re1 {[%clk 0:00:42]} 46. Kf2 {[%clk 0:00:29]}  Ra1 {[%clk 0:00:41]} 47. Ng3 {[%clk 0:00:28]}  Ke7 {[%clk 0:00:40]} 48. Ke3 {[%clk 0:00:27]}  Ke6 {[%clk 0:00:40]} 49. Ne4 {[%clk 0:00:26]}  f6 {[%clk 0:00:39]} 50. Nc5+ {[%clk 0:00:25]}  Kd5 {[%clk 0:00:38]} 51. Ne4 {[%clk 0:00:25]}  Ke5 {[%clk 0:00:37]} 52. Nf2 {[%clk 0:00:23]}  Ra3+ {[%clk 0:00:30]} 53. Nd3+ {[%clk 0:00:22]}  Kd5 {[%clk 0:00:30]} 54. Ke2 {[%clk 0:00:20]}  Kd4 {[%clk 0:00:29]} 55. Nf2 {[%clk 0:00:16]}  Ra2+ {[%clk 0:00:29]} 0-1


[Site "https://www.chess.com"]

[Event "Titled Tuesday Blitz December 20 Late 2022"]
[White "Bogaudinov, Rushan"]
[Black "Baches Garcia, Guillermo"]
[WhiteFideId "4129288"]
[BlackFideId "2209764"]
[WhiteElo "2028"]
[BlackElo "2461"]
[Result "1/2-1/2"]
[Round "10"]
[TimeControl "180+1"]
[Date "2022.12.21"]
[WhiteClock "0:01:24"]
[BlackClock "0:00:20"]

1. e4 {[%clk 0:02:59]}  c5 {[%clk 0:02:57]} 2. Nf3 {[%clk 0:02:58]}  d6 {[%clk 0:02:57]} 3. d4 {[%clk 0:02:58]}  cxd4 {[%clk 0:02:58]} 4. Nxd4 {[%clk 0:02:58]}  Nf6 {[%clk 0:02:59]} 5. Nc3 {[%clk 0:02:58]}  Nc6 {[%clk 0:02:59]} 6. Be2 {[%clk 0:02:55]}  Bd7 {[%clk 0:02:40]} 7. Nb3 {[%clk 0:02:54]}  g6 {[%clk 0:02:39]} 8. h4 {[%clk 0:02:52]}  h5 {[%clk 0:02:38]} 9. O-O {[%clk 0:02:50]}  Bg7 {[%clk 0:02:37]} 10. a4 {[%clk 0:02:40]}  O-O {[%clk 0:02:36]} 11. Be3 {[%clk 0:02:38]}  Na5 {[%clk 0:02:20]} 12. Nd4 {[%clk 0:02:25]}  Rc8 {[%clk 0:02:16]} 13. Bg5 {[%clk 0:02:21]}  Nc4 {[%clk 0:02:12]} 14. Rb1 {[%clk 0:02:16]}  Nxb2 {[%clk 0:02:09]} 15. Rxb2 {[%clk 0:02:16]}  Rxc3 {[%clk 0:02:08]} 16. Rxb7 {[%clk 0:02:15]}  Nxe4 {[%clk 0:02:01]} 17. Nb5 {[%clk 0:02:06]}  Bxb5 {[%clk 0:01:34]} 18. axb5 {[%clk 0:02:07]}  Nxg5 {[%clk 0:01:24]} 19. hxg5 {[%clk 0:02:08]}  Rc7 {[%clk 0:01:20]} 20. Bf3 {[%clk 0:02:00]}  Rxb7 {[%clk 0:01:18]} 21. Bxb7 {[%clk 0:02:00]}  Qb6 {[%clk 0:01:16]} 22. Bc6 {[%clk 0:01:59]}  a6 {[%clk 0:01:12]} 23. c4 {[%clk 0:01:59]}  Qc5 {[%clk 0:01:08]} 24. Qd5 {[%clk 0:01:56]}  axb5 {[%clk 0:01:01]} 25. cxb5 {[%clk 0:01:48]}  Qb6 {[%clk 0:00:49]} 26. Rd1 {[%clk 0:01:41]}  Be5 {[%clk 0:00:47]} 27. g3 {[%clk 0:01:40]}  Bxg3 {[%clk 0:00:44]} 28. Rd2 {[%clk 0:01:37]}  Be5 {[%clk 0:00:39]} 29. Re2 {[%clk 0:01:37]}  e6 {[%clk 0:00:37]} 30. Qe4 {[%clk 0:01:32]}  Kg7 {[%clk 0:00:36]} 31. Kg2 {[%clk 0:01:32]}  Rc8 {[%clk 0:00:29]} 32. Re3 {[%clk 0:01:31]}  Rc7 {[%clk 0:00:27]} 33. Rf3 {[%clk 0:01:31]}  Ra7 {[%clk 0:00:26]} 34. Qe3 {[%clk 0:01:26]}  Bd4 {[%clk 0:00:22]} 35. Qf4 {[%clk 0:01:25]}  Be5 {[%clk 0:00:19]} 36. Qe3 {[%clk 0:01:25]}  Bd4 {[%clk 0:00:19]} 37. Qf4 {[%clk 0:01:25]}  Be5 {[%clk 0:00:20]} 38. Qe3 {[%clk 0:01:24]} 1/2-1/2


[Site "https://www.chess.com"]